Cogmind - Beta 15 @@@ ROGUE MODE // 2025.05.31 @ 16:31:14 Player: Elias Result: Core destroyed Performance ------------- Evolutions (0) 0 Regions Visited (1) 200 Robots Destroyed (15) 75 Value Destroyed (325) 325 Prototype IDs (0) 0 Alien Tech Used (0) 0 Bonus (0) 0 TOTAL SCORE: 600 Bonus ------- None Cogmind --------- Core Integrity 0/250 Matter 247/300 Energy 100/100 System Corruption 0% Temperature Critical (564) Movement Core (150) Ox2 Location -10/Materials Parts ------- > --- POWER (1) -------- (None) > --- PROPULSION (2) --- (None) > --- UTILITY (2) ------ Small Storage Unit > --- WEAPON (2) ------- Medium Laser > --- INVENTORY (8) ---- Light Ion Engine Light Treads Light Treads Large Storage Unit Grenade Launcher Peak State ------------ > --- POWER ------------ Ion Engine > --- PROPULSION ------- Aluminum Leg Aluminum Leg > --- UTILITY ---------- Small Storage Unit Seismic Detector > --- WEAPON ----------- Medium Laser Assault Rifle > --- INVENTORY -------- Light Ion Engine Light Treads Light Treads Medium Laser Mining Laser [Rating: 7] Favorites ----------- Power Ion Engine Engine Ion Engine Propulsion Aluminum Leg Leg Aluminum Leg Utility Small Storage Unit Device Seismic Detector Storage Small Storage Unit Weapon Medium Laser Energy Gun Medium Laser Ballistic Gun Assault Rifle Special Weapon Mining Laser Build | -11 -10 ------- Run | Yrd Mat Slots Evolved . | . . Power . | . . Propulsion . | . . Utility . | . . Weapon . | . . Parts Attached 10 | 8 2 Power 2 | 2 . Engine 2 | 2 . Core . | . . Reactor . | . . Propulsion 2 | 2 . Treads . | . . Leg 2 | 2 . Wheel . | . . Hover . | . . Flight . | . . Utility 2 | 2 . Device 1 | 1 . Storage 1 | 1 . Processor . | . . Hackware . | . . Protection . | . . Artifact . | . . Weapon 4 | 2 2 Energy Gun 2 | 1 1 Energy Cannon . | . . Ballistic Gun 1 | 1 . Ballistic Cannon . | . . Launcher . | . . Special Weapon 1 | . 1 Impact Weapon . | . . Slashing Weapon . | . . Piercing Weapon . | . . Special Melee Weapon . | . . Unidentified Prototypes . | . . Parts Lost 7 | . 7 Power 1 | . 1 Propulsion 2 | . 2 Utility 1 | . 1 Weapon 3 | . 3 Highest Loss Streak 4 | . 4 To Critical Strikes . | . . Average Backups 5 | 4 6 Power . | . 1 Propulsion 1 | 1 2 Utility . | . . Weapon 1 | 1 2 Tool/Special . | . . Unused Backups 5 | 1 4 Power . | . . Propulsion 2 | . 2 Utility 2 | 1 1 Weapon 1 | . 1 Tool/Special . | . . Average Slot Usage (%) 86 | . 86 Engine 13 | . 13 Leg 23 | . 23 Device 7 | . 7 Storage 14 | . 14 Energy Gun 14 | . 14 Ballistic Gun 8 | . 8 Special Weapon 2 | . 2 Peak Build Rating 7 | 7 7 Average Rating 5 | 5 6 On Entrance 3 | . 7 Naked Turns . | . . Heaviest Build 15 | 15 15 Greatest Support 20 | 20 20 Greatest Overweight (x) . | . . Average Overweight (x) . | . . Largest Inventory Capacity 8 | 8 8 Average Capacity 7 | 7 8 Most Carried 7 | 6 7 Average Carried 5 | 4 6 Final Capacity 8 | 8 8 Final Carried 5 | 5 5 Class Distribution -------------------- 100% | Mutant Dominant Class ---------------- Mutant | -10/Materials Resources | -11 -10 ----------- Run | Yrd Mat Matter Collected 386 | 334 52 Remotely . | . . Salvage Created 432 | 181 251 Parts 25 | 13 12 Haulers Intercepted . | . . Recyclers Shooed 5 | 1 4 Parts Field Recycled . | . . Retrieved Matter . | . . Parts Self-Destructed . | . . Prevented . | . . Kills | -11 -10 ------- Run | Yrd Mat Combat Hostiles Destroyed 7 | . 7 Guns 5 | . 5 Cannons 2 | . 2 Classes Destroyed 5 | 3 2 Worker 2 | 2 . Tunneler 3 | 3 . Recycler 1 | 1 . Watcher 2 | . 2 Grunt 7 | . 7 Best Kill Streak 3 | 3 3 Combat Bots Only 3 | . 3 Max Kills in Single Turn 1 | 1 1 Gunslinging . | . . Exploded . | . . Melee . | . . Uniques/NPCs Destroyed . | . . Combat | -11 -10 -------- Run | Yrd Mat Hostile Shots Fired 75 | . 75 Missed 12 | . 12 Hits 63 | . 63 Projectile 63 | . 63 Critical Strikes 2 | . 2 Damage Taken 833 | . 833 Core 287 | . 287 Absorbed by Shields . | . . Core Remaining (%) 100 | 100 . Volleys Fired 56 | 18 38 Largest 2 | 2 2 Hottest 150 | 70 150 Shots Fired 102 | 36 66 Gun 93 | 36 57 Cannon . | . . Launcher . | . . Special 9 | . 9 Kinetic 37 | 18 19 Thermal 65 | 18 47 Explosive . | . . Electromagnetic . | . . Robot Hit Streak 9 | 7 9 Robot Miss Streak 3 | 2 3 Penetration Max . | . . Secondary Targets 1 | . 1 Max Gunslinging Chain 1 | . 1 Shots Hit Robots 68 | 23 45 Core Hits 27 | 7 20 Critical Kills . | . . Critical Parts Destroyed . | . . Critical Strikes 5 | 1 4 Burn 5 | 1 4 Melee Attacks . | . . Impact . | . . Slashing . | . . Piercing . | . . Sneak Attacks . | . . Combat Hostiles . | . . Follow-up Attacks . | . . Damage Inflicted 914 | 284 630 Guns 794 | 284 510 Cannons . | . . Explosions . | . . Melee . | . . Ramming . | . . Kinetic 299 | 134 165 Thermal 615 | 150 465 Explosive . | . . Electromagnetic . | . . Impact . | . . Slashing . | . . Piercing . | . . Highest Corruption . | . . Average Corruption . | . . Corruption Purged . | . . Corruption Blocked . | . . Overload Shots . | . . Overflow Damage . | . . Projectiles . | . . Explosions . | . . Melee . | . . Knockbacks . | . . Impact . | . . Kinetic . | . . Secondary . | . . Self-Inflicted Damage . | . . Shots . | . . Rammed . | . . Targets Rammed . | . . Kicked . | . . Crushed . | . . Highest Temperature 564 | 135 564 Average Temperature 179 | 59 230 Received Heat Transfer 459 | . 459 Effects 11 | . 11 Shutdowns 2 | . 2 Energy Bleed 1 | . 1 Interference 1 | . 1 Matter Decay 1 | . 1 Short Circuit 1 | . 1 Damage (major) 3 | . 3 Damage (core) 2 | . 2 Siege Activations . | . . Martial Activations . | . . Shielding Activations . | . . Robots Disrupted . | . . Combat Hostiles . | . . Robots Corrupted . | . . Combat Hostiles . | . . Parts Fried . | . . Impact Corruptions . | . . Robots Melted . | . . Combat Hostiles . | . . Parts Melted 2 | 1 1 Heat Transferred 2100 | 518 1582 Parts Sabotaged . | . . Parts Stolen . | . . Parts Stripped . | . . Power Chain Reactions . | . . Alert | -11 -10 ------- Run | Yrd Mat Maximum Alert Level . | . . Low Security (%) 100 | 100 100 Level 1 . | . . Level 2 . | . . Level 3 . | . . Level 4 . | . . Level 5 . | . . High Security . | . . Max Security . | . . Peak Influence 88 | 15 88 Initial . | . . Average 17 | 3 27 Influence Increases 236 | 30 206 Destroy 0b10 Robot/C 140 | . 140 Destroy 0b10 Robot/NC 40 | 30 10 Destroy Leader 34 | . 34 Successful Hack 4 | . 4 Destroy Structure 3 | . 3 Lose Combat Pursuer 15 | . 15 Influence Decreases 178 | 30 148 Time Decay 108 | 30 78 Lost Part 70 | . 70 Squads Dispatched 1 | . 1 Investigation . | . . Extermination . | . . Reinforcement 1 | . 1 Assault . | . . Garrison . | . . Intercept . | . . Searches Triggered . | . . Construction Impeded . | . . Haulers Reinforced . | . . Active Scanning Responses . | . . Cargo Convoy Interrupts . | . . Stealth | -11 -10 --------- Run | Yrd Mat Distress Signals 2 | . 2 Communications Jammed . | . . Distress Signals . | . . Times Spotted 12 | . 12 Peak Tracking Total 5 | . 5 Tactical Retreats 1 | . 1 Traps | -11 -10 ------- Run | Yrd Mat Traps Triggered . | . . Indirectly . | . . Trap Hack Attempts . | . . Triggered . | . . Disarmed . | . . Reprogrammed . | . . Reused . | . . Traps Extracted . | . . Installed . | . . Triggered . | . . Machines | -11 -10 ---------- Run | Yrd Mat Machines Disabled . | . . Max in Single Turn . | . . Machines Repaired . | . . Machines Dismantled . | . . Machines Sabotaged . | . . Overloaded Fab Kills . | . . Hacking | -11 -10 --------- Run | Yrd Mat Machines Accessed 1 | . 1 Terminals 1 | . 1 Fabricators . | . . Repair Stations . | . . Recycling Units . | . . Scanalyzers . | . . Garrison Access . | . . Total Hacks 3 | . 3 Successful 2 | . 2 Failed . | . . Catastrophic . | . . Database Lockouts 1 | . 1 Manual . | . . Terminals 3 | . 3 Fabricators . | . . Repair Stations . | . . Recycling Units . | . . Scanalyzers . | . . Garrison Access . | . . Terminal Hacks 2 | . 2 Record 2 | . 2 Fabricator Hacks . | . . Repair Station Hacks . | . . Recycling Unit Hacks . | . . Scanalyzer . | . . Garrison Access Hacks . | . . Unauthorized Hacks . | . . Terminals . | . . Fabricators . | . . Repair Stations . | . . Recycling Units . | . . Scanalyzers . | . . Garrison Access . | . . Data Cores Recovered . | . . Used . | . . Hacking Detections 1 | . 1 Full Trace Events 1 | . 1 Feedback Events . | . . Feedback Blocked . | . . Robot Schematics Acquired . | . . Robots Built . | . . Authchips . | . . Time . | . . Total Robot Build Rating . | . . Part Schematics Acquired . | . . Parts Built . | . . Authchips . | . . Time . | . . Total Part Build Rating . | . . Parts Repaired . | . . Time . | . . Parts Recycled . | . . Recycled Matter . | . . Retrieved Matter . | . . Retrieved Components . | . . Parts Scanalyzed . | . . Part Schematics Acquired . | . . Parts Damaged . | . . Bothacking | -11 -10 ------------ Run | Yrd Mat Used RIF Installer . | . . Robots Hacked . | . . Non-combat . | . . Combat . | . . Robot Hacks Applied . | . . Relay Couplers Released . | . . Fabnet Peak Effective % . | . . Robots Rewired . | . . Allies Hacked . | . . Hacks Repelled . | . . Allies | -11 -10 -------- Run | Yrd Mat Total Allies . | . . Largest Group . | . . Highest-Rated Group . | . . Highest-Rated Ally . | . . Total Orders . | . . Ally Attacks . | . . Total Damage . | . . Kills . | . . Allies Corrupted . | . . Allies Melted . | . . Intel | -11 -10 ------- Run | Yrd Mat Active Infowar (turns) 166 | 46 120 Seismic 166 | 46 120 Robot Analysis Total . | . . Derelict Logs Recovered . | . . Drone Launches . | . . Drone Recoveries . | . . Exploration | -11 -10 ------------- Run | Yrd Mat Turns Passed 381 | 152 229 Spaces Moved 148 | 72 76 Core 13 | 13 . Treads . | . . Legs 135 | 59 76 Wheels . | . . Hover . | . . Flight . | . . Fastest Speed 50 | 50 120 Average Speed 113 | 107 120 Slowest Speed 120 | 120 120 Overloaded Moves . | . . Propulsion Burnouts . | . . Robots Hopped . | . . Potential Cave-ins . | . . Cave-ins Triggered . | . . Exploration Rate (%) 12 | 5 20 Regions Visited 1 Branch Regions . Pre-discovered Areas . | . . Known Exits Taken . | . . Unknown Exits Taken 1 | 1 . Scrap Searched . | . . Spaces Dug . | . . Terrain Destroyed 3 | . 3 Melee . | . . Projectile 3 | . 3 AOE . | . . Terrain Rammed . | . . Walls Destroyed . | . . Machines Disabled . | . . Actions | -11 -10 --------- Run | Yrd Mat Total 240 | 110 130 Wait 12 | . 12 Move 147 | 71 76 Hop . | . . Pick Up 14 | 12 2 Fast Attach 1 | 1 . Attach 8 | 6 2 Detach . | . . Swap 1 | 1 . Drop 1 | 1 . Fire 56 | 18 38 Melee . | . . Ram . | . . Kick . | . . Crush . | . . Escape Stasis . | . . Rewire . | . . Trap . | . . Miscellaneous . | . . Route ------- -11/Scrapyard -10/Materials History --------- Turn | Location | Event 11 | -11/Scrapyard | Discovered new exit (range 15) 153 | -11/Scrapyard | Entered Materials 178 | -10/Materials | Central database locked down 319 | -10/Materials | Build established: Mutant 321 | -10/Materials | Core integrity fell below 50% 328 | -10/Materials | Lost 3 parts (1u2w) 380 | -10/Materials | Core integrity fell below 20% 383 | -10/Materials | Core destroyed Last Messages --------------- 00359_ Heat Sink melted. 00359_ G-34 Mercenary destroyed. 00360_ R-06 Scavenger collects Aluminum Leg. 00361_ U-05 Engineer builds a Wall. 00362_ K-01 Serf collects debris. 00363_ R-06 Scavenger collects Heat Sink. 00369_ K-01 Serf collects debris. 00370_ R-06 Scavenger collects Aluminum Leg. 00371_ U-05 Engineer builds a Wall. 00373_ Power failure, Ion Engine shutdown. 00375_ Overheating: Ion Engine damaged (-1). 00375_ Overheating: Med. Laser damaged (-15). 00375_ Overheating: Sml. Storage Unit damaged (-58). 00377_ Mining Laser broken. 00377_ Overheating: Short circuit. 00377_ Ion Engine destroyed. 00379_ G-34 Mercenary suffers critical hit (Burn). 00381_ Broken Mining Laser destroyed. 00382_ Overheating: Core damaged (-37). 00383_ Overheating: Core damaged (-40). Map ----- +----------------------------------------------------+ | ?????????????????????? ????????????????????? | | ??????????????????????? ?????????????????????? | | ???????????????????????# #?????????????????????? | | ???????????????????????# #?????????????????????? | | ???????????????????????# #?????????????????????? | | ???????????????????????# #?????????????????????? | | ?????#######??????????## ##????????????????????? | | ?????# ############ #????????????????????? | | ?????# #############????????? | | ?????# T T ^ ^ ?????? | | ?????# % ?????? | | ?????# ############ """ """ ???????? | | ?????## ##??????????###### "R" ""?????????? | | ??????# #??????##????????# " " """ ???????? | | ??????# #??????# ###?????# % ?????? | | ??????# #?????## #????## ?????? | | ???#### #?????# ###### """ """ ???????? | | ??##! #?????# ! %% """ ""?????????? | | ??#! #?????# ###### """ """ ???????? | | ??#! #?????#??###????# ??????? | | ??# #?????########### r ??????? | | ??#! #?????# # u ??????? | | ??##! #?????#!r # ??????? | | ???#### #?????# !! # ??????? | | ??????# #?????# !! g% #### ???????? | | ??????# #?????# """@#% #???????????? | | ??????#####?????# """ #########+##???????????? | | ????????????????? """ #????????? ????????????? | | ?????????????????! #?????????? ???????????? | | ??????????????????#########??????????????????????? | | ?????????????????????????????????????????????????? | | ?????????????????????????????????????????????????? | | ?????????????????????????????????????????????????? | | ?????????????????????????????????????????????????? | | ?????????????????????????????????????????????????? | | ?????????????????????????????????????????????????? | | ?????????????????????????????????????????????????? | | ?????????????????????????????????????????????????? | | ?????????????????????????????????????????????????? | | | | | | | | | | | | | | | | | | | | | | | +----------------------------------------------------+ Best States ------------- Heat Dissipation 25 Energy Generation 10 Energy Capacity 250 Matter Stores 300 Matter Capacity 300 Sight Range 16 Terrain Scan Density 10 Evasion (%) 55 Item Schematics ----------------- None Robot Schematics ------------------ None Fabricated ------------ Nothing Repaired ---------- Nothing Alien Tech Used ----------------- None Achievements -------------- None Challenges ------------ None Game ------ Seed InsulationMagneticStatue Manual? 0 Play Time 00:05:08 Cumulative 35.9 hours Start 2025.05.31 @ 16:27:48 End 2025.05.31 @ 16:31:14 Sessions 1 Manual Loads 0 Difficulty Rogue Special Mode None Game No. 56 Rogue 56 Adventurer 0 Explorer 0 Win Type - Total 0 Types 0/0/0/0/0/0/0/0/0/0 Lore% 32 Gallery% 34 Achievement% 29 Wizard Run 0 Options --------- Layout 0 ASCII 0 Keyboard 0 Movement Mouse Keybinds 0 Fullscreen 1 Font 18/SmallcapsGlow Map View 76x50 Zoom Use 0% Tactical HUD 1 Map Filters NONE Filters NONE Steam 1 RUN: 037e3324-0c8d-4593-8a8b-a34a068de4c3